[Event "Icelandic Open 2019"]
[Site "Akureyri"]
[Date "2019.05.26"]
[Round "3.15"]
[White "Briem, Benedikt"]
[Black "Bergsson, Stefan"]
[Result "0-1"]
[ECO "D02"]
[WhiteElo "1811"]
[BlackElo "2124"]
[Annotator "NA RC"]
[PlyCount "166"]
[EventDate "2019.05.25"]
[EventType "swiss"]
[EventCountry "ISL"]
[SourceTitle "playchess.com"]
[Source "ChessBase"]
[SourceQuality "1"]
[TimeControl "40/5400+30:1800+30"]

1. d4 {[%emt 0:00:00]} d5 {[%emt 0:01:52]} 2. Nf3 {[%emt 0:00:13]} Nf6 {[%emt 0:00:12]} 3. Bf4 {[%emt 0:00:19]} c5 {[%emt 0:00:15]} 4. e3 {[%emt 0:00:22]} Nc6 {[%emt 0:00:25]} 5. c3 {[%emt 0:00:33]} e6 {[%emt 0:00:31]} 6. Bd3 {[%emt 0:00:21]} Bd6 {[%emt 0:00:25]} 7. Bg3 {[%emt 0:00:12]} Bxg3 {[%emt 0:03:01]} 8. hxg3 {[%emt 0:00:15]} Qd6 {[%emt 0:01:03]} 9. Nbd2 {[%emt 0:01:12]} e5 {[%emt 0:01:37] D02: 1 d4 d5 2 Nf3 sidelines, including 2...Nf6 3 g3 and 2...Nf6 3 Bf4} (9... h6 10. O-O O-O 11. Re1 Rd8 12. Qe2 e5 {½-½ (12) Prohaszka,P (2596)-Khismatullin,D (2651) Minsk 2017}) 10. dxe5 {[%emt 0:01:26]} Nxe5 {[%emt 0:01:57]} 11. Nxe5 {[%emt 0:00:13]} Qxe5 {[%emt 0:00:02]} 12. Nf3 {[%emt 0:00:21]} Qc7 {[%emt 0:02:59]} 13. Qa4+ {[%emt 0:02:10]} Bd7 {[%emt 0:01:51]} 14. Qf4 {[%emt 0:00:55]} Rc8 $146 {[%emt 0:01:24]} ({Predecessor:} 14... Qxf4 15. gxf4 {0-1 (58) Korotkjevich,S (2372)-Sonntag,H (2350) Germany 2018}) 15. Qxc7 {[%emt 0:01:59]} Rxc7 {[%emt 0:00:02]} 16. Ne5 {[%emt 0:00:36]} Be6 {[%emt 0:01:01]} 17. Bb5+ {[%emt 0:05:48]} Ke7 {[%emt 0:00:11]} 18. a4 {[%emt 0:01:09]} Kd6 {[%emt 0:01:53]} 19. Nf3 {[%emt 0:01:59]} c4 {[%emt 0:02:11]} 20. a5 {[%emt 0:03:24]} Rc5 {[%emt 0:00:11]} 21. Nd4 {[%emt 0:01:24]} a6 {[%emt 0:00:18]} 22. Ba4 {[%emt 0:00:32]} g6 {[%emt 0:05:06]} 23. Bc2 {[%emt 0:01:24]} h5 {[%emt 0:00:25]} 24. f3 {[%emt 0:06:49]} Re8 {[%emt 0:01:01]} 25. Kf2 {[%emt 0:02:07]} Bc8 {[%emt 0:00:02]} 26. Rhd1 {[%emt 0:00:48]} Ke5 {[%emt 0:01:52]} 27. Re1 {[%emt 0:01:13]} Kd6 {[%emt 0:02:27]} 28. Red1 {[%emt 0:00:17]} Kc7 {[%emt 0:00:41]} 29. Rd2 {[%emt 0:02:33]} Nd7 {[%emt 0:01:23]} 30. Ra2 {[%emt 0:07:15]} Nf6 {[%emt 0:01:10]} 31. Rd1 {[%emt 0:00:22]} Re5 {[%emt 0:00:42]} 32. Rd2 {[%emt 0:03:49]} Kb8 {[%emt 0:01:45]} 33. Ra1 {[%emt 0:01:57]} Rc7 {[%emt 0:00:18]} 34. Re2 {[%emt 0:01:21]} Rce7 {[%emt 0:08:27]} 35. Rae1 {[%emt 0:01:27]} Re8 {[%emt 0:02:05]} 36. Rd1 {[%emt 0:02:12]} Kc7 {[%emt 0:02:55]} 37. Rde1 {[%emt 0:00:23]} Bd7 {[%emt 0:00:20]} 38. Ra1 {[%emt 0:00:30]} Kd6 {[%emt 0:00:07]} 39. Rae1 {[%emt 0:00:23]} Kc5 {[%emt 0:00:07]} 40. Ra1 {[%emt 0:00:00]} Bc6 {[%emt 0:00:00]} 41. Ree1 {[%emt 0:02:12]} R5e7 {[%emt 0:01:39]} 42. Ra2 {[%emt 0:01:02]} Nd7 {[%emt 0:01:09]} 43. Ra3 {[%emt 0:06:54]} Ne5 {[%emt 0:00:19]} 44. Raa1 {[%emt 0:00:44]} Bb5 {[%emt 0:04:00]} 45. Rad1 {[%emt 0:07:29]} Bc6 {[%emt 0:07:46]} 46. Ra1 {[%emt 0:00:42]} Rb8 {[%emt 0:01:02]} 47. Ra2 {[%emt 0:03:09]} Kd6 {[%emt 0:02:44]} 48. Ke2 {[%emt 0:03:03]} Nd7 {[%emt 0:00:32]} 49. Kd2 {[%emt 0:01:36]} Nc5 {[%emt 0:00:04]} 50. b4 {[%emt 0:09:21]} cxb3 {[%emt 0:00:23]} 51. Bxb3 {[%emt 0:00:54]} b6 {[%emt 0:01:12]} 52. axb6 {[%emt 0:02:11]} Rxb6 {[%emt 0:00:14]} 53. Bc2 {[%emt 0:00:22]} Reb7 {[%emt 0:01:40]} 54. Rea1 {[%emt 0:04:51]} Rb2 {[%emt 0:00:44]} 55. Rxb2 {[%emt 0:01:29]} Rxb2 {[%emt 0:00:02]} 56. Rb1 {[%emt 0:00:59]} Rxb1 {[%emt 0:00:46]} 57. Bxb1 {[%emt 0:00:02]} a5 {[%emt 0:00:32]} 58. Ba2 {[%emt 0:04:28]} a4 {[%emt 0:05:33]} 59. c4 {[%emt 0:02:11]} dxc4 {[%emt 0:03:12]} 60. Nxc6 {[%emt 0:02:24]} Kxc6 {[%emt 0:00:51]} 61. Bxc4 {[%emt 0:00:11]} Ne6 {[%emt 0:00:17]} 62. Kc3 {[%emt 0:02:26]} Kc5 {[%emt 0:00:04]} 63. f4 {[%emt 0:01:43]} Nd8 {[%emt 0:00:53]} 64. e4 {[%emt 0:01:33]} f6 {[%emt 0:01:52]} 65. Bd5 {[%emt 0:14:05]} g5 {[%emt 0:00:42]} 66. Bc4 {[%emt 0:05:51]} h4 $11 {[%emt 0:01:04]} 67. gxh4 {[%emt 0:01:01]} gxh4 {[%emt 0:00:04]} 68. e5 {[%emt 0:03:08]} fxe5 {[%emt 0:00:02]} 69. fxe5 {[%emt 0:00:54]} Nc6 {[%emt 0:03:03]} 70. e6 {[%emt 0:00:24]} a3 {[%emt 0:03:59]} 71. Be2 {[%emt 0:01:44]} Kd6 {[%emt 0:00:56]} 72. Bg4 {[%emt 0:02:45]} Nd4 {[%emt 0:01:04]} 73. Bd1 {[%emt 0:01:10]} Ke7 {[%emt 0:01:55]} 74. Bg4 {[%emt 0:01:06]} Kf6 {[%emt 0:01:16]} 75. Bd1 {[%emt 0:01:06]} Nb5+ {[%emt 0:00:23]} 76. Kb3 {[%emt 0:00:45]} Kxe6 {[%emt 0:00:29]} 77. Kb4 {[%emt 0:00:25]} Ke5 {[%emt 0:00:25]} 78. Bb3 {[%emt 0:00:32]} Nd4 {[%emt 0:00:18]} 79. Ba2 {[%emt 0:00:18]} Nc2+ {[%emt 0:01:49]} 80. Kb3 {[%emt 0:00:35]} Ne3 {[%emt 0:00:27]} 81. Kxa3 {[%emt 0:00:35]} Nxg2 {[%emt 0:00:34]} 82. Bf7 {[%emt 0:00:06]} h3 {[%emt 0:00:39]} 83. Bd5 {[%emt 0:00:49]} Kxd5 {[%emt 0:00:08]} 0-1

[Event "Icelandic Open 2019"]
[Site "Akureyri"]
[Date "2019.05.27"]
[Round "4.1"]
[White "Thorfinnsson, Bjorn"]
[Black "Sokolov, Ivan"]
[Result "0-1"]
[ECO "A21"]
[WhiteElo "2389"]
[BlackElo "2593"]
[Annotator "ChessBase"]
[PlyCount "32"]
[EventDate "2019.05.25"]
[EventType "swiss"]
[EventCountry "ISL"]
[SourceTitle "playchess.com"]
[Source "ChessBase"]
[SourceQuality "1"]
[TimeControl "40/5400+30:1800+30"]

1. c4 {[%emt 0:00:00]} e5 {[%emt 0:07:02]} 2. Nc3 {[%emt 0:00:52]} Bb4 {[%emt 0:06:19]} 3. Nd5 {[%emt 0:00:21]} Be7 {[%emt 0:00:24]} 4. d4 {[%emt 0:01:56]} d6 {[%emt 0:00:18]} 5. c5 {[%emt 0:12:22]} Nf6 {[%emt 0:03:13]} 6. Nxe7 {[%emt 0:01:30]} Qxe7 {[%emt 0:00:04]} 7. cxd6 {[%emt 0:02:27]} cxd6 {[%emt 0:00:08]} 8. b3 {[%emt 0:01:15]} Nc6 {[%emt 0:04:15]} 9. d5 {[%emt 0:01:59]} Nb4 {[%emt 0:00:29]} 10. Ba3 {[%emt 0:01:55]} Nbxd5 {[%emt 0:13:03]} 11. e4 {[%emt 0:22:22]} Qc7 {[%emt 0:00:11]} 12. Bb5+ {[%emt 0:00:24]} Ke7 {[%emt 0:00:06]} 13. Qd2 {[%emt 0:14:15]} Nxe4 {[%emt 0:01:34]} 14. Qxd5 {[%emt 0:00:03]} Qc3+ {[%emt 0:00:52]} 15. Ke2 {[%emt 0:00:11]} Qc2+ {[%emt 0:01:38]} 16. Ke3 {[%emt 0:02:41]} Qxf2+ {[%emt 0:00:27]} 0-1

[Event "Icelandic Open 2019"]
[Site "Akureyri"]
[Date "2019.05.27"]
[Round "4.4"]
[White "Hillarp Persson, Tiger"]
[Black "Petursson, Gudni"]
[Result "1-0"]
[ECO "D02"]
[WhiteElo "2563"]
[BlackElo "2045"]
[Annotator "ChessBase"]
[PlyCount "61"]
[EventDate "2019.05.25"]
[EventType "swiss"]
[EventCountry "ISL"]
[SourceTitle "playchess.com"]
[Source "ChessBase"]
[SourceQuality "1"]
[TimeControl "40/5400+30:1800+30"]

1. Nf3 {[%emt 0:00:00]} Nf6 {[%emt 0:00:26]} 2. g3 {[%emt 0:00:00]} d5 {[%emt 0:01:38]} 3. Bg2 {[%emt 0:00:06]} Nc6 {[%emt 0:01:50]} 4. d4 {[%emt 0:01:03]} Bf5 {[%emt 0:02:07]} 5. c4 {[%emt 0:07:06]} e6 {[%emt 0:01:23]} 6. O-O {[%emt 0:03:39]} Be7 {[%emt 0:00:34]} 7. Nc3 {[%emt 0:00:58]} dxc4 {[%emt 0:03:50]} 8. Qa4 {[%emt 0:04:08]} O-O {[%emt 0:00:39]} 9. Qxc4 {[%emt 0:00:30]} Bg6 {[%emt 0:16:59]} 10. Bg5 {[%emt 0:04:47]} Nd5 {[%emt 0:02:58]} 11. Bxe7 {[%emt 0:00:17]} Ncxe7 {[%emt 0:00:08]} 12. Ne5 {[%emt 0:03:13]} c6 {[%emt 0:00:17]} 13. Nxg6 {[%emt 0:02:28]} hxg6 {[%emt 0:00:12]} 14. Rfd1 {[%emt 0:00:34]} Nxc3 {[%emt 0:00:38]} 15. bxc3 {[%emt 0:00:06]} Qa5 {[%emt 0:02:37]} 16. Qb3 {[%emt 0:02:27]} Rab8 {[%emt 0:00:24]} 17. a4 {[%emt 0:01:19]} Rfd8 {[%emt 0:00:43]} 18. e3 {[%emt 0:02:47]} Nd5 {[%emt 0:03:05]} 19. Rdc1 {[%emt 0:09:43]} Nf6 {[%emt 0:03:42]} 20. Qb4 {[%emt 0:10:00]} Qc7 {[%emt 0:00:20]} 21. a5 {[%emt 0:05:13]} a6 {[%emt 0:02:52]} 22. Rab1 {[%emt 0:00:59]} Nd7 {[%emt 0:00:44]} 23. Qa3 {[%emt 0:02:52]} e5 {[%emt 0:02:22]} 24. Rc2 {[%emt 0:03:11]} exd4 {[%emt 0:02:14]} 25. cxd4 {[%emt 0:00:08]} Nf6 {[%emt 0:00:18]} 26. h4 {[%emt 0:17:11]} Qd7 {[%emt 0:01:33]} 27. Qc5 {[%emt 0:01:52]} Ne8 {[%emt 0:00:31]} 28. Rcb2 {[%emt 0:00:21]} Qc7 {[%emt 0:01:49]} 29. Rb6 {[%emt 0:04:48]} Nd6 {[%emt 0:01:46]} 30. d5 {[%emt 0:00:15]} Nc8 {[%emt 0:00:22]} 31. dxc6 {[%emt 0:00:31]} 1-0

[Event "Icelandic Open 2019"]
[Site "Akureyri"]
[Date "2019.05.27"]
[Round "4.5"]
[White "Kristjansson, Olafur"]
[Black "Stefansson, Hannes"]
[Result "0-1"]
[ECO "B56"]
[WhiteElo "2069"]
[BlackElo "2561"]
[Annotator "RC"]
[PlyCount "71"]
[EventDate "2019.05.25"]
[EventType "swiss"]
[EventCountry "ISL"]
[SourceTitle "playchess.com"]
[Source "ChessBase"]
[SourceQuality "1"]
[TimeControl "40/5400+30:1800+30"]

1. e4 {[%emt 0:00:00]} c5 {[%emt 0:00:00]} 2. Nf3 {[%emt 0:00:00]} Nc6 {[%emt 0:00:00]} 3. d4 {[%emt 0:00:29]} cxd4 {[%emt 0:00:00]} 4. Nxd4 {[%emt 0:00:10]} Nf6 {[%emt 0:00:14]} 5. Nc3 {[%emt 0:00:24]} d6 {[%emt 0:00:13]} 6. Be3 {[%emt 0:00:35]} Ng4 {[%emt 0:03:07]} 7. Bb5 {[%emt 0:00:10]} Nxe3 {[%emt 0:00:53]} 8. fxe3 {[%emt 0:03:24]} Bd7 {[%emt 0:00:44]} 9. O-O {[%emt 0:01:09]} e6 {[%emt 0:01:01]} 10. Bxc6 {[%emt 0:00:17]} bxc6 {[%emt 0:00:06]} 11. e5 {[%emt 0:09:17]} dxe5 {[%emt 0:14:38]} 12. Qh5 {[%emt 0:05:40]} Qe7 {[%emt 0:00:31]} 13. Qxe5 {[%emt 0:00:28]} f6 {[%emt 0:04:44]} 14. Qh5+ {[%emt 0:00:13]} Qf7 {[%emt 0:00:28]} 15. Qf3 {[%emt 0:06:55]} Rc8 {[%emt 0:02:30]} 16. Rad1 {[%emt 0:00:21]} Qg6 {[%emt 0:01:37]} 17. Rf2 {[%emt 0:11:42]} Bb4 {[%emt 0:10:26]} 18. e4 {[%emt 0:04:39]} O-O {[%emt 0:07:40]} 19. Nb3 {[%emt 0:03:06]} Be8 {[%emt 0:01:47]} 20. Re1 {[%emt 0:07:48]} Qg5 {[%emt 0:03:45]} 21. Qh3 {[%emt 0:05:39]} Qe5 {[%emt 0:03:08]} 22. Rf3 {[%emt 0:02:48]} Bh5 {[%emt 0:02:22]} 23. Rd3 {[%emt 0:00:52]} Rcd8 {[%emt 0:05:46]} 24. a3 {[%emt 0:02:11]} Rxd3 {[%emt 0:00:16]} 25. Qxd3 {[%emt 0:00:33]} Bd6 {[%emt 0:00:13]} 26. g3 {[%emt 0:00:45]} f5 {[%emt 0:01:56]} 27. Rf1 {[%emt 0:05:20]} f4 {[%emt 0:00:48]} 28. gxf4 {[%emt 0:01:13]} Rxf4 {[%emt 0:00:10]} 29. Rxf4 {[%emt 0:00:12]} Qxf4 {[%emt 0:00:07]} 30. Qg3 {[%emt 0:00:11]} Qxg3+ {[%emt 0:01:21]} 31. hxg3 {[%emt 0:00:10]} Bxg3 {[%emt 0:00:07]} 32. Nd4 {[%emt 0:00:24]} Bf4 {[%emt 0:05:01]} 33. Kf1 {[%emt 0:12:03]} Bc1 {[%emt 0:01:04]} 34. Na4 {[%emt 0:00:28]} e5 {[%emt 0:04:49]} 35. Nb3 {[%emt 0:01:23]} Be3 {[%emt 0:04:04]} 36. Ke1 {[%emt 0:02:20]} 0-1

[Event "Icelandic Open 2019"]
[Site "Akureyri"]
[Date "2019.05.27"]
[Round "4.7"]
[White "Bergsson, Stefan"]
[Black "Kjartansson, Gudmundur"]
[Result "0-1"]
[ECO "A36"]
[WhiteElo "2124"]
[BlackElo "2454"]
[Annotator "RC"]
[PlyCount "58"]
[EventDate "2019.05.25"]
[EventType "swiss"]
[EventCountry "ISL"]
[SourceTitle "playchess.com"]
[Source "ChessBase"]
[SourceQuality "1"]
[TimeControl "40/5400+30:1800+30"]

1. c4 {[%emt 0:02:15]} c5 {[%emt 0:01:35]} 2. Nc3 {[%emt 0:00:27]} g6 {[%emt 0:00:16]} 3. g3 {[%emt 0:01:20]} Bg7 {[%emt 0:00:11]} 4. Bg2 {[%emt 0:00:06]} Nc6 {[%emt 0:00:20]} 5. a3 {[%emt 0:02:12]} d6 {[%emt 0:04:59]} 6. Rb1 {[%emt 0:00:17]} Nh6 {[%emt 0:00:43]} 7. e3 {[%emt 0:00:51]} Bd7 {[%emt 0:21:50]} 8. Nge2 {[%emt 0:01:30]} Nf5 {[%emt 0:04:25]} 9. b4 {[%emt 0:04:54]} Rb8 {[%emt 0:08:48]} 10. O-O {[%emt 0:02:11]} h5 {[%emt 0:00:37]} 11. h3 {[%emt 0:01:01]} b6 {[%emt 0:01:29]} 12. b5 {[%emt 0:01:36]} Na5 {[%emt 0:05:14]} 13. d3 {[%emt 0:01:58]} Bc8 {[%emt 0:01:22]} 14. Bb2 {[%emt 0:13:43]} Bb7 {[%emt 0:01:25]} 15. e4 {[%emt 0:05:11]} Nd4 {[%emt 0:00:22]} 16. Nxd4 {[%emt 0:00:24]} cxd4 {[%emt 0:03:17]} 17. Ne2 {[%emt 0:03:58]} e5 {[%emt 0:00:08]} 18. f4 {[%emt 0:00:04]} Bc8 {[%emt 0:01:07]} 19. f5 {[%emt 0:02:30]} Nb7 {[%emt 0:00:51]} 20. Rf3 {[%emt 0:05:46]} Nc5 {[%emt 0:00:41]} 21. Qf1 {[%emt 0:00:49]} gxf5 {[%emt 0:12:59]} 22. Nc1 {[%emt 0:04:32]} fxe4 {[%emt 0:05:48]} 23. Rxf7 {[%emt 0:00:17]} Rb7 {[%emt 0:01:57]} 24. Rxb7 {[%emt 0:05:25]} Bxb7 {[%emt 0:00:14]} 25. dxe4 {[%emt 0:00:31]} Qg5 {[%emt 0:07:14]} 26. Qf5 {[%emt 0:05:20]} Qe3+ {[%emt 0:02:57]} 27. Kh2 {[%emt 0:00:23]} Bxe4 {[%emt 0:00:28]} 28. Qc8+ {[%emt 0:01:08]} Ke7 {[%emt 0:00:12]} 29. Qc7+ {[%emt 0:00:08]} Nd7 {[%emt 0:00:09]} 0-1

[Event "Icelandic Open 2019"]
[Site "Akureyri"]
[Date "2019.05.27"]
[Round "4.8"]
[White "Gunnarsson, Jon Viktor"]
[Black "Jonsson, Gauti Pall"]
[Result "1/2-1/2"]
[ECO "B06"]
[WhiteElo "2452"]
[BlackElo "2033"]
[Annotator "RC"]
[PlyCount "88"]
[EventDate "2019.05.25"]
[EventType "swiss"]
[EventCountry "ISL"]
[SourceTitle "playchess.com"]
[Source "ChessBase"]
[SourceQuality "1"]
[TimeControl "40/5400+30:1800+30"]

1. e4 {[%emt 0:00:00]} c5 {[%emt 0:00:00]} 2. Nf3 {[%emt 0:00:01]} g6 {[%emt 0:00:09]} 3. c3 {[%emt 0:03:40]} d5 {[%emt 0:02:24]} 4. e5 {[%emt 0:02:44]} Bg7 {[%emt 0:02:47]} 5. d4 {[%emt 0:02:22]} Nc6 {[%emt 0:02:53]} 6. h3 {[%emt 0:08:21]} Qc7 {[%emt 0:06:55]} 7. Be3 {[%emt 0:08:00]} Bf5 {[%emt 0:06:14]} 8. Nbd2 {[%emt 0:03:53]} f6 {[%emt 0:04:49]} 9. Bb5 {[%emt 0:19:29]} fxe5 {[%emt 0:03:53]} 10. Nxe5 {[%emt 0:02:18]} Bxe5 {[%emt 0:05:33]} 11. dxe5 {[%emt 0:01:13]} a6 {[%emt 0:01:00]} 12. Bxc6+ {[%emt 0:06:51]} Qxc6 {[%emt 0:00:58]} 13. O-O {[%emt 0:00:07]} Rd8 {[%emt 0:04:13]} 14. b4 {[%emt 0:03:38]} d4 {[%emt 0:03:30]} 15. cxd4 {[%emt 0:01:05]} cxd4 {[%emt 0:00:07]} 16. Bg5 {[%emt 0:06:50]} h6 {[%emt 0:03:19]} 17. Bh4 {[%emt 0:01:56]} Qb5 {[%emt 0:01:35]} 18. Re1 {[%emt 0:02:04]} Qxb4 {[%emt 0:00:40]} 19. a3 {[%emt 0:02:37]} Qb5 {[%emt 0:02:39]} 20. Ne4 {[%emt 0:03:33]} Bxe4 {[%emt 0:04:45]} 21. Rxe4 {[%emt 0:00:06]} Qd5 {[%emt 0:00:10]} 22. Qg4 {[%emt 0:01:52]} g5 {[%emt 0:01:45]} 23. Bg3 {[%emt 0:01:16]} h5 {[%emt 0:01:34]} 24. Qf5 {[%emt 0:04:03]} Rh6 {[%emt 0:00:17]} 25. f3 {[%emt 0:02:33]} Nf6 {[%emt 0:03:34]} 26. Ree1 {[%emt 0:03:04]} Nh7 {[%emt 0:00:52]} 27. Rad1 {[%emt 0:00:28]} d3 {[%emt 0:05:41]} 28. Bf2 {[%emt 0:02:04]} Qe6 {[%emt 0:01:07]} 29. Qe4 {[%emt 0:02:29]} Qd5 {[%emt 0:00:39]} 30. Qf5 {[%emt 0:03:39]} Qe6 {[%emt 0:00:16]} 31. Qxe6 {[%emt 0:00:43]} Rxe6 {[%emt 0:00:07]} 32. Re3 {[%emt 0:00:10]} Nf8 {[%emt 0:00:49]} 33. Bg3 {[%emt 0:00:30]} d2 {[%emt 0:00:57]} 34. Re2 {[%emt 0:01:10]} Ng6 {[%emt 0:00:10]} 35. Kf2 {[%emt 0:00:36]} Rd5 {[%emt 0:00:50]} 36. Rexd2 {[%emt 0:00:20]} Rxd2+ {[%emt 0:00:12]} 37. Rxd2 {[%emt 0:00:03]} Nxe5 {[%emt 0:00:09]} 38. Rd5 {[%emt 0:00:33]} Nf7 {[%emt 0:00:26]} 39. a4 {[%emt 0:01:16]} Rc6 {[%emt 0:01:34]} 40. h4 {[%emt 0:00:00]} e6 {[%emt 0:00:00]} 41. Ra5 {[%emt 0:04:17]} gxh4 {[%emt 0:04:58]} 42. Bxh4 {[%emt 0:00:04]} e5 {[%emt 0:01:07]} 43. Bg3 {[%emt 0:01:59]} Re6 {[%emt 0:05:14]} 44. Rd5 {[%emt 0:01:48]} Ke7 {[%emt 0:00:47]} 1/2-1/2

[Event "Icelandic Open 2019"]
[Site "Akureyri"]
[Date "2019.05.27"]
[Round "4.11"]
[White "Johannsson, Birkir Isak"]
[Black "Thorhallsson, Simon"]
[Result "0-1"]
[ECO "E90"]
[WhiteElo "1981"]
[BlackElo "2184"]
[Annotator "NA"]
[PlyCount "50"]
[EventDate "2019.05.25"]
[EventType "swiss"]
[EventCountry "ISL"]
[SourceTitle "playchess.com"]
[Source "ChessBase"]
[SourceQuality "1"]
[TimeControl "40/5400+30:1800+30"]

1. d4 {[%emt 0:00:00]} Nf6 {[%emt 0:00:00]} 2. c4 {[%emt 0:00:00]} g6 {[%emt 0:00:00]} 3. Nc3 {[%emt 0:00:00]} Bg7 {[%emt 0:00:00]} 4. e4 {[%emt 0:00:00]} d6 {[%emt 0:00:00]} 5. h3 {[%emt 0:00:15]} O-O {[%emt 0:00:00]} 6. Nf3 {[%emt 0:00:03]} e5 {[%emt 0:00:12]} 7. d5 {[%emt 0:00:06]} Nh5 {[%emt 0:00:27]} 8. g3 {[%emt 0:00:13]} Na6 {[%emt 0:00:18]} 9. Nh2 {[%emt 0:00:16]} Nc5 {[%emt 0:01:22]} 10. Be3 {[%emt 0:00:18]} a5 {[%emt 0:04:00]} 11. Be2 {[%emt 0:00:26]} Nf6 {[%emt 0:00:50]} 12. Bxc5 {[%emt 0:00:35]} dxc5 {[%emt 0:00:07]} 13. Bg4 {[%emt 0:00:05]} Ne8 14. Bxc8 Rxc8 15. Nf3 Nd6 16. Qe2 f5 17. h4 fxe4 18. Ng5 {[%emt 0:02:31]} e3 19. fxe3 {[%emt 0:00:30]} e4 20. Ncxe4 {[%emt 0:00:30]} Nxe4 21. Nxe4 {[%emt 0:00:30]} Qe7 22. Ng5 {[%emt 0:00:30]} Bxb2 23. Rb1 {[%emt 0:00:30]} Bc3+ 24. Kd1 {[%emt 0:00:30]} Rcd8 25. Ne6 {[%emt 0:00:30]} Qxe6 0-1

[Event "Icelandic Open 2019"]
[Site "Akureyri"]
[Date "2019.05.27"]
[Round "4.13"]
[White "Karlsson, Mikael Johann"]
[Black "Collin, Jean-Philippe"]
[Result "0-1"]
[ECO "B93"]
[WhiteElo "2146"]
[BlackElo "1792"]
[Annotator "NA RC"]
[PlyCount "44"]
[EventDate "2019.05.25"]
[EventType "swiss"]
[EventCountry "ISL"]
[SourceTitle "playchess.com"]
[Source "ChessBase"]
[SourceQuality "1"]
[TimeControl "40/5400+30:1800+30"]

1. e4 {[%emt 0:00:00]} c5 {[%emt 0:00:00]} 2. Nf3 {[%emt 0:00:30]} d6 {[%emt 0:00:30]} 3. d4 {[%emt 0:00:30]} cxd4 {[%emt 0:00:30]} 4. Nxd4 {[%emt 0:00:30]} Nf6 {[%emt 0:00:30]} 5. Nc3 {[%emt 0:00:03]} a6 {[%emt 0:00:00]} 6. f4 {[%emt 0:00:00]} e5 {[%emt 0:00:00]} 7. Nb3 {[%emt 0:00:00]} Nbd7 {[%emt 0:00:00]} 8. Qf3 {[%emt 0:00:00]} Be7 {[%emt 0:00:00]} 9. Be3 {[%emt 0:00:00]} O-O {[%emt 0:00:00]} 10. O-O-O {[%emt 0:01:31]} Qc7 {[%emt 0:00:25]} 11. h3 {[%emt 0:00:56]} exf4 {[%emt 0:00:39]} 12. Bxf4 {[%emt 0:03:40]} Ne5 {[%emt 0:00:06]} 13. Qe2 {[%emt 0:03:30]} Be6 {[%emt 0:00:12]} 14. Nd5 {[%emt 0:02:31]} Bxd5 {[%emt 0:01:25]} 15. exd5 {[%emt 0:03:07]} Rac8 {[%emt 0:00:11]} 16. Bxe5 {[%emt 0:08:31]} dxe5 {[%emt 0:00:10]} 17. g4 {[%emt 0:03:06]} a5 {[%emt 0:02:49]} 18. g5 {[%emt 0:08:04]} Nh5 {[%emt 0:00:09]} 19. Rg1 {[%emt 0:01:40]} Nf4 {[%emt 0:00:05]} 20. Qe4 {[%emt 0:08:15]} a4 {[%emt 0:00:13]} 21. Nd2 {[%emt 0:07:52]} a3 {[%emt 0:00:11]} 22. Qc4 {[%emt 0:00:15]} Qb6 {[%emt 0:01:03]} 0-1

[Event "Icelandic Open 2019"]
[Site "Akureyri"]
[Date "2019.05.27"]
[Round "4.14"]
[White "Jonsson, Stefan G"]
[Black "Pinto, Mark"]
[Result "1-0"]
[ECO "A25"]
[WhiteElo "1568"]
[BlackElo "2082"]
[Annotator "NA"]
[PlyCount "67"]
[EventDate "2019.05.25"]
[EventType "swiss"]
[EventCountry "ISL"]
[SourceTitle "playchess.com"]
[Source "ChessBase"]
[SourceQuality "1"]
[TimeControl "40/5400+30:1800+30"]

1. g3 {[%emt 0:00:00]} Nf6 {[%emt 0:00:35]} 2. c4 {[%emt 0:00:00]} e5 {[%emt 0:00:36]} 3. Bg2 {[%emt 0:00:01]} Nc6 {[%emt 0:00:37]} 4. Nc3 {[%emt 0:01:20]} a6 {[%emt 0:01:36]} 5. d3 {[%emt 0:01:42]} Bc5 {[%emt 0:00:37]} 6. e3 {[%emt 0:02:30]} O-O {[%emt 0:08:53]} 7. a3 {[%emt 0:00:36]} Re8 {[%emt 0:02:45]} 8. b4 {[%emt 0:00:14]} Bf8 {[%emt 0:00:23]} 9. Bb2 {[%emt 0:00:31]} Ne7 {[%emt 0:00:23]} 10. Nf3 {[%emt 0:05:42]} d6 {[%emt 0:01:54]} 11. O-O {[%emt 0:00:07]} Bg4 {[%emt 0:03:41]} 12. h3 {[%emt 0:01:15]} Bh5 {[%emt 0:00:09]} 13. Kh2 {[%emt 0:00:32]} Rb8 {[%emt 0:00:17]} 14. Qb3 {[%emt 0:04:13]} c6 {[%emt 0:03:22]} 15. Ne4 {[%emt 0:03:49]} Nxe4 {[%emt 0:00:33]} 16. dxe4 {[%emt 0:00:04]} Qc7 {[%emt 0:03:50]} 17. c5 {[%emt 0:01:49]} Bxf3 {[%emt 0:00:57]} 18. cxd6 {[%emt 0:00:06]} Qxd6 {[%emt 0:00:10]} 19. Bxf3 {[%emt 0:00:04]} Ng6 {[%emt 0:01:29]} 20. Rad1 {[%emt 0:01:11]} Qc7 {[%emt 0:02:05]} 21. h4 {[%emt 0:01:32]} Rbd8 {[%emt 0:04:26]} 22. Be2 {[%emt 0:03:36]} b5 {[%emt 0:00:36]} 23. h5 {[%emt 0:02:08]} Ne7 {[%emt 0:01:38]} 24. Kg2 {[%emt 0:05:25]} Nc8 {[%emt 0:01:00]} 25. Rxd8 {[%emt 0:04:20]} Rxd8 {[%emt 0:03:14]} 26. Rc1 {[%emt 0:00:05]} Bd6 {[%emt 0:02:13]} 27. Qc3 {[%emt 0:04:30]} Ne7 {[%emt 0:00:33]} 28. Rd1 {[%emt 0:00:43]} Nc8 {[%emt 0:02:05]} 29. f4 {[%emt 0:02:04]} f6 {[%emt 0:00:30]} 30. Qb3+ {[%emt 0:00:53]} Kf8 {[%emt 0:07:25]} 31. fxe5 {[%emt 0:03:54]} fxe5 {[%emt 0:06:06]} 32. Rf1+ {[%emt 0:00:09]} Ke8 {[%emt 0:00:13]} 33. Qg8+ {[%emt 0:00:06]} Kd7 {[%emt 0:00:16]} 34. Bg4+ {[%emt 0:00:05]} 1-0